bitfinex-derivatives/quotes_ETHF0:USTF0_20250524
["timestamp","ask_amount","ask_price","bid_price","bid_amount"]
[1748058588167,33.82787,2547.4,2547.3,0.78491]
[1748058588776,0.78491,2547.3,2547.2,1.2924]
[1748058588980,0.78494,2547.2,2547.1,3.28329626]
[1748058589179,2.86004,2547.2,2547.1,0.07549626]
[1748058590182,0.785,2547.0,2546.9,2.85753]
[1748058591281,0.785,2547.0,2546.9,2.0725]
[1748058592174,2.1707,2547.0,2546.9,2.0725]
[1748058592782,2.1707,2547.0,2546.9,3.43384636]
[1748058593375,2.1707,2547.0,2546.9,2.72894636]
[1748058594580,17.5457,2547.0,2546.9,1.36134636]
[1748058595479,0.78503,2546.9,2546.8,3.2078]
[1748058595680,2.06603,2546.9,2546.8,3.2078]
[1748058595985,0.78509,2546.7,2546.6,1.07110086]
[1748058596180,18.45209,2546.7,2546.6,1.07110086]
[1748058597277,19.73309,2546.7,2546.6,1.07110086]
[1748058597477,0.78512,2546.6,2546.5,5.31034]
[1748058597672,16.16012,2546.6,2546.5,5.31034]
[1748058598686,16.16012,2546.6,2546.5,6.67232228]
[1748058601585,16.16012,2546.6,2546.5,5.88718228]
[1748058601785,16.16012,2546.6,2546.5,6.67233228]
[1748058602377,16.16012,2546.6,2546.5,5.31035]
[1748058602591,16.16012,2546.6,2546.5,4.5252]
[1748058603790,17.669,2546.6,2546.5,4.5252]
[1748058604087,18.45412,2546.6,2546.5,4.5252]
[1748058605290,18.45412,2546.6,2546.5,4.60069626]
[1748058605491,18.45412,2546.6,2546.5,5.96175352]
[1748058606890,19.75492,2546.6,2546.5,4.60069626]
[1748058609897,19.75592,2546.6,2546.5,4.60069626]
[1748058611897,19.75592,2546.6,2546.5,3.28329626]
[1748058612088,0.78518,2546.4,2546.3,0.3928]
[1748058613099,1.47658,2546.4,2546.3,0.3928]
[1748058614300,1.47658,2546.4,2546.2,0.3928]
[1748058614301,0.78521,2546.3,2546.2,0.3928]
[1748058614502,17.39591,2546.3,2546.2,0.3928]
[1748058615702,35.06591,2546.3,2546.2,0.3928]
[1748058618795,1.2807,2546.3,2546.2,1.17804]
[1748058618999,0.6914,2546.4,2546.2,1.17804]
[1748058619000,3.2078,2547.1,2546.3,0.3928]
[1748058619199,18.64832643,2547.2,2547.0,3.2078]
[1748058619403,0.97532643,2547.2,2547.1,2.18407]
[1748058619808,0.97532643,2547.2,2547.1,8.49477]
[1748058620504,0.97532643,2547.2,2547.1,23.82677]
[1748058621114,1.30632672,2547.5,2547.4,0.78487]
[1748058621303,1.30632672,2547.5,2547.4,3.99267]
[1748058621499,1.30632672,2547.5,2547.4,8.99267]
[1748058624300,1.30632672,2547.5,2547.4,3.99267]
[1748058625010,1.30632672,2547.5,2547.4,8.99267]
[1748058625407,1e-08,2547.5,2547.4,8.99267]
[1748058625903,1.95065287,2548.3,2547.6,1.96202]
[1748058626108,0.78463,2548.2,2548.0,0.78467]
[1748058626409,0.78463,2548.2,2548.1,3.2078]
[1748058626707,0.78463,2548.2,2548.1,4.5326]
[1748058627208,0.00589148,2548.4,2548.1,5.31724]
[1748058627209,0.78462,2548.3,2548.1,5.31724]
[1748058627412,0.7846,2548.3,2548.2,1.3248]
[1748058627703,0.00589148,2548.4,2548.3,0.7846]
[1748058628011,0.00589148,2548.4,2548.3,1.444]
[1748058628305,0.65372213,2548.8,2548.7,0.78448]
[1748058628507,0.65372213,2548.8,2548.7,3.99228]
[1748058630911,0.00589148,2549.0,2548.9,0.78441]
[1748058631117,1.30744426,2549.2,2549.1,0.78435]
[1748058631316,1.30744426,2549.2,2549.1,3.99215]
[1748058632015,1.30744426,2549.2,2549.1,8.99215]
[1748058632413,0.00589148,2549.4,2549.2,0.78429]
[1748058632713,0.00589148,2549.4,2549.3,2.08779]
[1748058633615,0.00589148,2549.4,2549.3,5.29559]
[1748058634814,0.79015148,2549.4,2549.3,3.2078]
[1748058635114,0.78432,2549.2,2549.1,1.48e-06]
[1748058635414,18.44232,2549.2,2549.1,1.48e-06]
[1748058635614,23.44232,2549.2,2549.1,1.48e-06]
[1748058635813,25.47742,2549.2,2549.1,1.48e-06]
[1748058637808,7.81942,2549.2,2549.1,1.48e-06]
[1748058638009,41.03742,2549.2,2549.1,1.48e-06]
[1748058640116,23.37942,2549.2,2549.1,1.48e-06]
[1748058640318,41.03742,2549.2,2549.1,1.48e-06]
[1748058645119,0.78471,2548.0,2547.7,3.2078]
[1748058645418,1.3264,2547.9,2547.8,0.78474]
[1748058645609,1.3264,2547.9,2547.8,2.14334]
[1748058646215,34.00857148,2548.1,2547.9,0.78471]
[1748058646413,34.00857148,2548.1,2547.9,2.12301]
[1748058646624,34.00857148,2548.1,2547.9,1.3383]
[1748058647125,34.00857148,2548.1,2547.9,2.12301]
[1748058647716,0.78469,2548.0,2547.9,2.12301]
[1748058648123,0.78469,2548.0,2547.9,1.3383]
[1748058648315,2.06559,2548.0,2547.9,1.3383]
[1748058648814,2.06559,2548.0,2547.7,3.2078]
[1748058648815,0.78475,2547.8,2547.7,3.2078]
[1748058649020,0.78475,2547.8,2547.7,3.99258]
[1748058649314,1.2809,2548.0,2547.7,3.2078]
[1748058649516,0.78472,2547.9,2547.8,1.3285]
[1748058650822,1.2809,2548.0,2547.7,3.2078]
[1748058650823,0.78475,2547.8,2547.7,3.2078]
[1748058651422,0.78475,2547.8,2547.7,4.5363]
[1748058651717,0.78475,2547.8,2547.6,0.00589148]
[1748058651718,0.78478,2547.7,2547.6,0.00589148]
[1748058651922,17.63778,2547.7,2547.6,0.00589148]
[1748058652316,36.58288,2547.7,2547.6,0.00589148]
[1748058655814,18.92388,2547.7,2547.6,0.00589148]
[1748058656014,36.58488,2547.7,2547.6,0.00589148]
[1748058656417,0.00589148,2548.1,2547.6,8.21369148]
[1748058656620,3.2078,2548.4,2548.3,0.7846]
[1748058656925,3.2078,2548.4,2548.0,3.2078]
[1748058656926,0.78466,2548.1,2548.0,3.2078]
[1748058657215,0.78465,2548.2,2548.0,4.608]
[1748058657423,0.78466,2548.1,2548.0,4.608]
[1748058657618,0.78466,2548.1,2548.0,5.39269]
[1748058657920,0.78465,2548.2,2548.0,5.39269]
[1748058658519,15.56889148,2548.3,2548.2,0.78463]
[1748058658717,0.00589148,2548.3,2548.2,0.78463]
[1748058660322,0.79049148,2548.3,2548.2,0.78463]
[1748058660524,0.79049148,2548.3,2548.2,1.2883]
[1748058661815,0.79049148,2548.3,2548.2,2.07293]
[1748058662221,0.79049148,2548.3,2548.2,2.77273]
[1748058662422,17.66589148,2548.3,2548.2,2.77273]
[1748058662622,18.45049148,2548.3,2548.2,2.77273]
[1748058663624,18.45049148,2548.3,2548.2,1.9881]
[1748058666126,18.45049148,2548.3,2548.2,2.06359626]
[1748058666926,0.00589148,2548.3,2548.2,2.84822626]
[1748058667128,18.45049148,2548.3,2548.2,2.84822626]
[1748058667627,0.00589148,2548.3,2548.2,2.84822626]
[1748058668021,0.79049148,2548.3,2548.2,2.84822626]
[1748058668323,0.00589148,2548.3,2548.2,2.84822626]
[1748058670325,0.00589148,2548.3,2548.2,4.24128451]
[1748058671028,0.00589148,2548.3,2548.2,9.24128451]
[1748058674529,0.00589148,2548.3,2548.2,4.24128451]
[1748058677731,0.78463,2548.2,2548.1,1.12495003]
[1748058677931,0.78466,2548.1,2548.0,1.12495003]
[1748058678428,7.14566,2548.1,2548.0,1.12495003]
[1748058678625,1.361,2548.1,2548.0,1.90964003]
[1748058678934,34.81,2548.1,2548.0,4.33275003]
[1748058679433,34.81,2548.1,2548.0,6.39144003]
[1748058679730,34.81,2548.1,2548.0,4.4818]
[1748058680128,17.66489148,2548.3,2548.0,4.4818]
[1748058680334,0.00589148,2548.3,2548.2,0.86012626]
[1748058680534,0.00589148,2548.3,2548.2,2.24462626]
[1748058688442,0.00589148,2548.3,2548.2,2.16913]
[1748058689347,0.00589148,2548.3,2548.2,2.24462626]
[1748058689946,0.00589148,2548.3,2548.2,3.64299283]
[1748058693851,18.9048,2549.0,2548.2,27.47850283]
[1748058694046,3.2078,2549.0,2548.9,0.78442]
[1748058694547,20.4052,2549.2,2549.1,0.78436]
[1748058697352,2.7472,2549.2,2549.1,0.78436]
[1748058697550,20.4052,2549.2,2549.1,0.78436]
[1748058697752,2.7472,2549.2,2549.1,0.78436]
[1748058700055,0.00589148,2549.4,2549.3,0.78429]
[1748058700848,1.31039148,2549.4,2549.3,0.78429]
[1748058701356,1.31039148,2549.4,2549.3,2.06399]
[1748058704350,0.00589148,2549.4,2549.3,2.06399]
[1748058710755,0.00589148,2549.4,2549.3,2.13948626]
[1748058711750,3.2078,2550.0,2549.9,0.78411]
[1748058711955,2.14653,2550.2,2550.0,0.78407]
[1748058712455,0.78411,2549.9,2549.8,3.2078]
[1748058712651,0.7842,2549.6,2549.3,0.646]
[1748058712851,0.6954,2549.5,2549.4,0.78427]
[1748058713948,0.00589148,2549.7,2549.6,0.7842]
[1748058714155,16.67095725,2550.7,2549.6,8.2078]
[1748058714458,16.67095725,2550.7,2549.5,0.6438]
[1748058714459,2.6413,2550.6,2550.5,0.78393]
[1748058715159,1.9459,2550.6,2550.5,0.78393]
[1748058715358,1.9459,2550.6,2550.5,2.19153]
[1748058717652,0.69927333,2550.8,2550.7,0.78387]
[1748058717857,1.33697333,2550.8,2550.7,0.78387]
[1748058718453,1.33697333,2550.8,2550.5,1.4076]
[1748058718758,1.33697333,2550.8,2550.7,0.78387]
[1748058719054,2.72047333,2550.8,2550.7,0.78387]
[1748058720155,0.00387333,2550.8,2550.7,0.78387]
[1748058720950,0.00387333,2550.8,2550.7,3.99167]
[1748058721155,0.00387333,2550.8,2550.7,8.99167]
[1748058721451,1.3692,2551.2,2551.1,0.78374]
[1748058721652,1.3692,2551.2,2551.1,3.99154]
[1748058722057,15.685,2551.6,2551.5,0.78362]
[1748058722252,36.0701,2551.6,2551.5,0.78362]
[1748058723457,36.85369,2551.6,2551.4,0.78363]
[1748058723657,0.78362,2551.5,2551.3,0.78366]
[1748058723854,1.3604,2551.4,2551.3,0.78366]
[1748058724047,2.14405,2551.4,2551.1,3.2078]
[1748058724246,1.3604,2551.4,2551.3,0.78368]
[1748058729062,1.3604,2551.4,2551.1,3.99153]
[1748058729251,1.3604,2551.4,2551.2,0.78372]
[1748058729457,1.3604,2551.4,2551.3,0.78369]
[1748058731065,1.3604,2551.4,2551.3,3.99149]
[1748058731265,2.14406,2551.4,2551.3,3.99149]
[1748058731460,0.78369,2551.3,2551.2,0.78371]
[1748058731667,0.78374,2551.2,2551.1,0.78375]
[1748058731860,0.78385,2550.8,2550.7,5.38500353]
[1748058732060,0.78385,2550.8,2550.7,1.39334353]
[1748058732263,17.64,2551.0,2550.9,0.78382]
[1748058732568,34.6603,2551.0,2550.9,0.78382]
[1748058733164,34.6603,2551.0,2550.8,0.78383]
[1748058733469,35.4441,2551.0,2550.8,0.78385]
[1748058734166,0.78382,2550.9,2550.7,0.78386]
[1748058734465,1.2973,2550.8,2550.7,0.78386]
[1748058736061,18.9373,2550.8,2550.7,0.78386]
[1748058736668,1.2973,2550.8,2550.7,3.99166]
[1748058737168,4.929,2552.5,2550.7,3.2078]
[1748058737470,36.83511,2551.6,2551.5,0.78363]
[1748058737769,35.51611,2551.6,2551.5,0.78363]
[1748058737963,0.78363,2551.5,2551.4,0.78364]
[1748058738668,35.51612,2551.6,2551.4,0.78364]
[1748058738865,0.78363,2551.5,2551.4,0.78364]
[1748058739468,35.51612,2551.6,2551.4,0.78364]
[1748058739671,0.78363,2551.5,2551.4,0.78364]
[1748058741763,35.51611,2551.6,2551.5,0.78363]
[1748058742773,34.7325,2551.6,2551.3,0.0058797]
[1748058742968,0.78366,2551.4,2551.3,0.0058797]
[1748058743876,0.78366,2551.4,2551.3,0.7895697]
[1748058744577,0.78366,2551.4,2551.3,0.0058797]
[1748058744775,5.78366,2551.4,2551.3,0.0058797]
[1748058748278,0.78382,2550.9,2550.8,3.2078]
[1748058748476,36.5698,2550.9,2550.4,6.96325003]
[1748058748673,1.2874,2550.8,2550.7,0.78388]
[1748058750079,0.78388,2550.7,2550.6,2.15999]
[1748058750278,1.2874,2550.8,2550.7,0.78388]
[1748058751282,18.9274,2550.8,2550.7,0.78388]
[1748058752188,19.71125,2550.8,2550.7,0.78388]
[1748058752388,18.9274,2550.8,2550.7,0.78388]
[1748058752590,0.78388,2550.7,2550.6,2.15999]
[1748058753190,20.2297,2550.8,2550.7,0.78388]
[1748058754790,0.78388,2550.7,2550.6,2.15999]
[1748058755189,20.28236645,2550.8,2550.7,0.78388]
[1748058755387,19.49850645,2550.8,2550.7,0.78388]
[1748058755593,20.28235645,2550.8,2550.7,0.78388]
[1748058755788,0.78388,2550.7,2550.6,2.15999]
[1748058756093,0.78388,2550.7,2550.6,1.3761]
[1748058756293,2.12158,2550.7,2550.6,2.16001]
[1748058756487,2.12158,2550.7,2550.6,1.3761]
[1748058757187,2.12158,2550.7,2550.6,2.16001]
[1748058759398,0.78391,2550.6,2550.5,0.0058797]
[1748058759595,2.10721,2550.6,2550.5,0.0058797]
[1748058760393,2.10721,2550.6,2550.5,1.2852797]
[1748058760589,6.3233,2550.6,2550.1,4.33275003]
[1748058760892,0.78406,2550.1,2550.0,1.12495003]
[1748058761089,34.02106,2550.1,2550.0,1.12495003]
[1748058761395,0.78412,2549.9,2549.8,1.4257321]
[1748058761597,3.99192,2549.9,2549.8,1.4257321]
[1748058761801,8.99192,2549.9,2549.8,1.4257321]
[1748058762598,0.78418,2549.7,2549.6,0.0058797]
[1748058762794,16.38218,2549.7,2549.6,0.0058797]
[1748058763297,17.72078,2549.7,2549.6,1.30453457]
[1748058764195,35.36578,2549.7,2549.6,1.30453457]
[1748058767001,17.72078,2549.7,2549.6,1.30453457]
[1748058767295,35.36778,2549.7,2549.6,1.30453457]
[1748058770294,15.598,2549.7,2549.6,0.0058797]
[1748058770494,15.598,2549.7,2549.6,0.6680797]
[1748058770495,34.03018,2549.7,2549.6,0.6680797]
[1748058770699,34.03318,2549.7,2549.6,0.6680797]
[1748058771413,3.99194,2549.9,2549.7,0.78416]
[1748058771589,3.99194,2549.9,2549.6,0.6680797]
[1748058771590,15.601,2550.0,2549.8,1.3303]
[1748058771903,15.601,2550.0,2549.9,0.78412]
[1748058772109,0.0058797,2550.1,2550.0,0.78409]
[1748058772498,0.0058797,2550.1,2550.0,5.78409]
[1748058772799,0.0058797,2550.1,2550.0,0.78409]
[1748058772998,0.0058797,2550.1,2550.0,2.75869]
[1748058773200,0.0058797,2550.1,2550.0,7.75869]
[1748058773397,0.0058797,2550.1,2550.0,2.75869]
[1748058777402,0.7899397,2550.1,2550.0,0.6443]
[1748058778911,0.7899397,2550.1,2550.0,2.0134]
[1748058780100,0.78412,2550.0,2549.8,0.78415]
[1748058780310,15.6,2549.9,2549.8,0.78415]
[1748058780509,15.6,2549.9,2549.8,2.15735]
[1748058781207,0.0058797,2550.1,2550.0,0.78409]
[1748058784008,0.0058797,2550.1,2549.9,0.78411]
[1748058784212,0.7899397,2550.1,2550.0,1.3262]
[1748058784506,0.0058797,2550.1,2550.0,2.11029]
[1748058784712,0.0058797,2550.1,2550.0,1.3262]
[1748058785008,0.78415,2549.8,2549.7,0.662]
[1748058785215,0.78415,2549.8,2549.7,1.9882]
[1748058785404,0.78418,2549.7,2549.6,0.6680797]
[1748058785599,2.09528,2549.7,2549.6,0.6680797]
[1748058785909,2.76598,2549.7,2549.6,0.0058797]
[1748058794018,1.9818,2549.7,2549.6,0.0058797]
[1748058794219,15.637,2549.8,2549.7,0.78418]
[1748058794516,15.637,2549.8,2549.7,2.79448]
[1748058795219,0.78411,2550.0,2549.8,0.78415]
[1748058795413,34.5793,2550.0,2549.8,2.76115]
[1748058796920,0.78412,2549.9,2549.8,2.76115]
[1748058797419,0.78412,2549.9,2549.8,1.977]
[1748058797819,0.78412,2549.9,2549.8,0.07549626]
[1748058798119,2.07442,2549.9,2549.8,0.07549626]
[1748058798925,2.07444,2549.9,2549.7,0.6861]
[1748058799221,2.07444,2549.9,2549.8,1.3678]
[1748058799420,2.07444,2549.9,2549.8,2.0301]
[1748058799622,0.78414,2549.9,2549.8,2.81425]
[1748058799918,33.289,2550.0,2549.8,2.88974626]
[1748058800121,0.78412,2549.9,2549.8,2.88972626]
[1748058800722,0.78412,2549.9,2549.8,2.81423]
[1748058801216,0.78412,2549.9,2549.8,2.0301]
[1748058801718,2.17922,2549.9,2549.8,2.0301]
[1748058805824,2.17922,2549.9,2549.8,2.10559626]
[1748058806224,19.82822,2549.9,2549.8,2.10559626]
[1748058806428,18.43312,2549.9,2549.8,2.10559626]
[1748058806819,18.43312,2549.9,2549.8,2.0301]
[1748058812026,0.78418,2549.7,2549.6,3.2136797]
[1748058812225,16.42218,2549.7,2549.6,3.2136797]
[1748058812623,16.42218,2549.7,2549.6,4.6047797]
[1748058813119,15.638,2549.7,2549.6,5.3889997]
[1748058813628,16.42218,2549.7,2549.6,5.3889997]
[1748058815929,16.42218,2549.7,2549.6,4.6047797]
[1748058816131,17.07668,2549.7,2549.6,3.2136797]
[1748058817323,17.07668,2549.7,2549.6,3.9978997]
[1748058818732,17.07668,2549.7,2549.6,0.7900997]
[1748058820132,33.9415,2549.7,2549.6,2.1176997]
[1748058820428,34.72568,2549.7,2549.6,2.1176997]
[1748058821335,0.78417,2549.8,2549.7,0.78417]
[1748058821535,33.98817,2549.8,2549.7,2.11177]
[1748058821734,33.98817,2549.8,2549.7,2.78317]
[1748058825738,16.33917,2549.8,2549.7,2.78317]
[1748058825933,33.98817,2549.8,2549.7,2.78317]
[1748058828039,33.98817,2549.8,2549.7,1.999]
[1748058828340,0.78418,2549.7,2549.6,0.7900697]
[1748058828534,2.11238,2549.7,2549.6,0.7900697]
[1748058830834,18.9782,2549.7,2549.6,0.7900697]
[1748058831840,19.76238,2549.7,2549.6,0.7900697]
[1748058832442,19.76238,2549.7,2549.6,2.20801661]
[1748058834943,19.76238,2549.7,2549.6,1.42382661]
[1748058835548,19.76238,2549.7,2549.6,2.20804661]
[1748058836147,19.76238,2549.7,2549.6,1.42382661]
[1748058837146,19.76238,2549.7,2549.6,2.20804661]
[1748058837540,19.76238,2549.7,2549.6,0.7900997]
[1748058837740,18.9782,2549.7,2549.6,0.7900997]
[1748058837939,19.76238,2549.7,2549.6,0.7900997]
[1748058838548,18.9782,2549.7,2549.6,0.7900997]
[1748058839142,19.76238,2549.7,2549.6,0.7900997]
[1748058839347,19.76238,2549.7,2549.6,0.0058797]
[1748058840247,19.76238,2549.7,2549.6,0.7900997]
[1748058841052,19.76238,2549.7,2549.6,2.20847608]
[1748058841949,19.76238,2549.7,2549.6,1.42425608]
[1748058843650,19.76238,2549.7,2549.6,2.20847608]
[1748058844245,19.76238,2549.7,2549.6,0.7900997]
[1748058844450,19.76238,2549.7,2549.6,0.86559596]
[1748058844750,2.11238,2549.7,2549.6,0.86559596]
[1748058844951,35.31838,2549.7,2549.6,0.86559596]
[1748058847668,35.31838,2549.7,2549.6,2.28931915]
[1748058849064,15.403,2550.0,2549.9,0.78412]
[1748058849270,33.053,2550.0,2549.8,0.78413]
[1748058849470,0.78413,2549.9,2549.8,2.7361]
[1748058849670,2.12553,2549.9,2549.8,2.7361]
[1748058849970,2.12553,2549.9,2549.8,3.52025]
[1748058851070,2.12553,2549.9,2549.8,0.6867]
[1748058851275,0.78415,2549.8,2549.7,3.2078]
[1748058851461,2.79625,2549.8,2549.7,3.2078]
[1748058851666,2.79625,2549.8,2549.6,3.5390697]
[1748058851975,2.79625,2549.8,2549.7,0.78418]
[1748058852176,2.79625,2549.8,2549.7,2.16988]
[1748058853068,2.79625,2549.8,2549.7,1.3857]
[1748058853370,2.79625,2549.8,2549.7,2.80866114]
[1748058854276,2.79625,2549.8,2549.7,3.59284114]
[1748058857477,2.0121,2549.8,2549.7,3.59284114]
[1748058857678,17.649,2549.8,2549.7,3.59284114]
[1748058858278,0.0058797,2550.1,2550.0,0.78409]
[1748058858781,0.0058797,2550.1,2550.0,3.99189]
[1748058858980,0.7899397,2550.1,2550.0,4.66729]
[1748058859983,0.0058797,2550.1,2550.0,4.66729]
[1748058860680,17.6548797,2550.1,2550.0,4.66729]
[1748058861084,0.0058797,2550.1,2550.0,4.66729]
[1748058863985,0.0058797,2550.1,2550.0,6.08707372]
[1748058869386,2.1728397,2550.1,2550.0,5.30298372]
[1748058869581,2.0744797,2550.1,2550.0,6.08707372]
[1748058870291,1.3887797,2550.1,2550.0,4.66729]
[1748058872491,0.0058797,2550.1,2550.0,4.66729]
[1748058874087,3.2078,2550.5,2550.4,0.78397]
[1748058874489,20.8538,2550.5,2550.4,0.78397]
[1748058874693,17.56043,2550.6,2550.5,0.78394]
[1748058874993,35.20643,2550.6,2550.5,0.78394]
[1748058875489,17.56043,2550.6,2550.5,0.78394]
[1748058875690,35.20643,2550.6,2550.5,0.78394]
[1748058876289,16.7765,2550.6,2550.5,0.78394]
[1748058876589,34.4225,2550.6,2550.5,2.14774]
[1748058881700,34.4225,2550.6,2550.3,3.2078]
[1748058881902,0.78397,2550.4,2550.3,3.2078]
[1748058882099,1.3537,2550.5,2550.1,1.46735]
[1748058882294,0.78403,2550.2,2550.1,1.46735]
[1748058882600,3.53722,2550.3,2550.1,1.46735]
[1748058882800,1.3537,2550.2,2550.1,0.78405]
[1748058884303,2.13773,2550.2,2550.1,0.78405]
[1748058884501,1.3537,2550.2,2550.1,0.78405]
[1748058884699,2.13773,2550.2,2550.1,0.78405]
[1748058886701,1.3537,2550.2,2550.1,0.78405]
[1748058888105,2.13773,2550.2,2550.1,0.78405]
[1748058889607,1.3537,2550.2,2550.1,0.78405]
[1748058889901,15.399,2550.6,2550.5,0.78394]
[1748058890103,34.441,2550.6,2550.5,0.78394]
[1748058890505,34.441,2550.6,2550.5,2.82764]
[1748058891907,35.22491,2550.6,2550.5,2.82764]
[1748058892309,34.441,2550.6,2550.5,2.82764]
[1748058892804,35.22491,2550.6,2550.5,2.82764]
[1748058896816,16.795,2550.6,2550.5,2.82764]
[1748058897016,34.44,2550.6,2550.5,2.82764]
[1748058898316,35.22391,2550.6,2550.5,2.82764]
[1748058901818,16.795,2550.6,2550.5,2.82764]
[1748058902013,34.44,2550.6,2550.5,2.82764]
[1748058903013,16.795,2550.6,2550.5,2.82764]
[1748058903211,34.44,2550.6,2550.5,2.82764]
[1748058904215,33.044,2550.6,2550.5,2.82764]
[1748058904821,1.33764044,2550.8,2550.5,2.0437]
[1748058905023,17.644,2550.6,2550.5,1.42444]
[1748058905319,17.644,2550.6,2550.5,2.8464495]
[1748058905914,19.13381,2550.6,2550.5,2.8464495]
[1748058907523,19.13381,2550.6,2550.5,1.4220095]
[1748058907725,25.30975,2550.6,2550.1,4.37186092]
[1748058908024,0.78403,2550.2,2550.1,4.37186092]
[1748058908224,16.16703,2550.2,2550.1,4.37186092]
[1748058908823,16.16703,2550.2,2550.1,1.16406092]
[1748058909426,16.81923,2550.2,2550.1,1.16406092]
[1748058909719,0.78406,2550.1,2550.0,1.29865487]
[1748058909925,19.76396,2550.1,2550.0,1.29865487]
[1748058910121,1.3359,2550.1,2550.0,1.29865487]
[1748058910327,34.3599,2550.1,2550.0,2.08274487]
[1748058910528,35.14396,2550.1,2550.0,1.29865487]
[1748058911528,33.025,2550.1,2550.0,2.08274487]
[1748058911719,0.6522,2550.2,2550.0,1.29865487]
[1748058911921,19.70526,2550.1,2550.0,2.08274487]
[1748058912928,18.9212,2550.1,2550.0,0.78409]
[1748058913428,3.2078,2550.4,2550.3,0.784]
[1748058913623,36.2338,2550.4,2550.3,0.784]
[1748058913928,36.2338,2550.4,2549.9,4.5677]
[1748058913929,0.78401,2550.3,2550.1,0.78405]
[1748058914126,2.06021,2550.3,2550.1,0.78405]
[1748058914329,1.2762,2550.2,2550.1,0.78405]
[1748058914629,33.026,2550.4,2550.3,0.784]
[1748058914824,34.331,2550.4,2550.3,0.784]
[1748058915019,16.686,2550.4,2550.3,0.784]
[1748058915226,34.332,2550.4,2550.3,0.784]
[1748058918026,35.11597,2550.4,2550.3,0.784]
[1748058918329,16.686,2550.4,2550.3,0.784]
[1748058918630,34.332,2550.4,2550.3,0.784]
[1748058919130,34.332,2550.4,2550.3,1.4849]
[1748058919728,35.11597,2550.4,2550.3,1.4849]
[1748058920030,34.332,2550.4,2550.3,1.4849]
[1748058920832,35.11597,2550.4,2550.3,1.4849]
[1748058921133,35.11597,2550.4,2550.3,0.784]
[1748058921533,34.332,2550.4,2550.3,0.784]
[1748058922633,15.381,2550.4,2550.3,0.784]
[1748058922834,33.027,2550.4,2550.3,0.784]
[1748058923333,33.027,2550.4,2550.3,2.1121]
[1748058926536,0.00584044,2550.8,2550.4,1.95993]
[1748058926837,15.38584044,2550.8,2550.7,0.78388]
[1748058927039,0.00584044,2550.8,2550.7,0.78388]
[1748058927337,17.65184044,2550.8,2550.7,0.78388]
[1748058934041,17.64884044,2550.8,2550.7,0.78388]
[1748058934746,0.00584044,2550.8,2550.7,0.78388]
[1748058953654,0.00584044,2550.8,2550.7,2.19655752]
[1748058959370,16.15969044,2550.8,2550.7,1.41267752]
[1748058959570,25.71229044,2550.8,2550.7,1.41267752]
[1748058959871,0.78391,2550.6,2550.5,0.78393]
[1748058960473,0.78394,2550.5,2550.4,0.78395]
[1748058961167,1.3588,2550.7,2550.3,1.16406092]
[1748058961470,2.14269,2550.7,2550.6,0.78391]
[1748058962071,0.78391,2550.6,2550.5,0.78392]
[1748058962271,2.14271,2550.6,2550.5,0.78392]
[1748058962774,1.3588,2550.6,2550.5,0.78392]
[1748058963874,2.14271,2550.6,2550.5,0.78392]
[1748058965780,0.78395,2550.5,2550.4,0.78394]
[1748058966076,2.18155,2550.5,2550.4,0.78394]
[1748058967178,1.3976,2550.5,2550.4,0.78394]
[1748058973584,15.36,2550.6,2550.5,0.78394]
[1748058973882,19.0027,2550.7,2550.6,0.78391]
[1748058974484,1.3587,2550.7,2550.6,0.78391]
[1748058974785,15.36584044,2550.8,2550.7,0.78388]
[1748058975180,15.36584044,2550.8,2550.7,2.10918]
[1748058975785,0.00584044,2550.8,2550.7,2.10918]
[1748058979487,0.00584044,2550.8,2550.7,3.51933737]
[1748058981091,0.00584044,2550.8,2550.7,4.68339829]
[1748058983294,0.00584044,2550.8,2550.7,3.51933737]
[1748058987394,0.00584044,2550.8,2550.7,6.72713737]
[1748058988902,9.28313403,2551.9,2550.7,10.94325737]
[1748058989200,0.65053569,2551.9,2551.8,0.78354]
[1748058989498,0.65053569,2551.9,2551.8,3.99134]
[1748058989698,0.65053569,2551.9,2551.5,3.2078]
[1748058989699,18.29053569,2551.9,2551.5,3.2078]
[1748058989997,18.29053569,2551.9,2551.6,0.7836]
[1748058989998,6.60916,2551.8,2551.6,0.7836]
[1748058990190,1.3026,2551.7,2551.6,0.7836]
[1748058993501,1.3026,2551.7,2551.6,2.8519]
[1748058994502,0.6717,2551.8,2551.7,0.78357]
[1748058994701,0.6717,2551.8,2551.7,2.12237]
[1748058994904,0.6717,2551.8,2551.7,2.76747]
[1748058995098,2.0162,2551.8,2551.7,2.76747]
[1748058998402,2.79974,2551.8,2551.7,2.76747]
[1748058998607,2.79974,2551.8,2551.7,0.78357]
[1748058998905,0.7836,2551.6,2551.5,3.99142]
[1748058999398,1.2762,2551.7,2551.5,3.99142]
[1748058999597,2.05978,2551.7,2551.6,0.7836]
[1748059001006,2.05978,2551.7,2551.5,3.99141]
[1748059001205,1.3832,2551.6,2551.5,3.99141]
[1748059007004,0.6717,2551.8,2551.7,0.78357]
[1748059007309,1.9677,2551.8,2551.7,0.78357]
[1748059008002,1.9677,2551.8,2551.6,1.4836]
[1748059008310,0.7836,2551.6,2551.5,3.2078]
[1748059008705,0.7836,2551.6,2551.5,0.78361]
[1748059009005,0.78361,2551.6,2551.5,0.78361]
[1748059010310,2.07959,2551.7,2551.6,0.7836]
[1748059011709,1.296,2551.7,2551.6,0.7836]
[1748059013312,2.07957,2551.7,2551.6,0.7836]
[1748059019614,2.07957,2551.7,2551.6,2.19278601]
[1748059019817,2.07957,2551.7,2551.6,1.40918601]
[1748059020513,0.78363,2551.5,2551.4,0.0058797]
[1748059021314,3.56583,2551.5,2551.4,0.0058797]
[1748059023215,8.56583,2551.5,2551.4,0.0058797]